bitfinex-derivatives/quotes_BTCF0:USTF0_20251228
["timestamp","ask_amount","ask_price","bid_price","bid_amount"]
[1766892993971,0.02402441,87822.0,87812.0,0.05717083]
[1766892994173,0.02402441,87821.0,87812.0,0.05717083]
[1766892994374,0.02402441,87820.0,87812.0,0.05717083]
[1766892994666,0.0113943,87825.0,87812.0,0.00017083]
[1766892994866,0.02402409,87824.0,87812.0,0.00017083]
[1766892995060,0.02402409,87823.0,87812.0,0.00017083]
[1766892995263,0.02402409,87822.0,87812.0,0.00017083]
[1766892995568,0.02402409,87821.0,87812.0,0.00017083]
[1766892995768,0.02402409,87820.0,87812.0,0.00017083]
[1766892995968,0.0113943,87825.0,87812.0,0.00017083]
[1766892996171,0.02402302,87824.0,87812.0,0.00017083]
[1766892996370,0.02402302,87823.0,87812.0,0.00017083]
[1766892996571,0.02402302,87822.0,87812.0,0.00017083]
[1766892996773,0.02402302,87821.0,87812.0,0.00017083]
[1766892997071,0.02402302,87820.0,87812.0,0.00017083]
[1766892997271,0.0113943,87825.0,87812.0,0.00017083]
[1766892997571,0.0240221,87824.0,87812.0,0.00017083]
[1766892997770,0.0240221,87823.0,87812.0,0.00017083]
[1766892997967,0.0240221,87822.0,87812.0,0.00017083]
[1766892998172,0.0240221,87821.0,87812.0,0.00017083]
[1766892998362,0.0240221,87820.0,87812.0,0.00017083]
[1766892998567,0.02402171,87819.0,87812.0,0.00017083]
[1766892998768,0.02402171,87818.0,87812.0,0.00017083]
[1766892998966,0.0113943,87825.0,87812.0,0.00017083]
[1766892999169,0.02402171,87824.0,87812.0,0.00017083]
[1766892999369,0.02402171,87823.0,87812.0,0.00017083]
[1766892999570,0.02402171,87822.0,87812.0,0.00017083]
[1766892999766,0.02402171,87821.0,87812.0,0.00017083]
[1766892999970,0.02402171,87820.0,87812.0,0.00017083]
[1766893000166,0.02402171,87819.0,87812.0,0.00017083]
[1766893000366,0.0113943,87825.0,87812.0,0.00017083]
[1766893000367,0.02402171,87818.0,87812.0,0.00017083]
[1766893000566,0.0113943,87825.0,87812.0,0.00017083]
[1766893000767,0.02402122,87824.0,87812.0,0.00017083]
[1766893000974,0.02402122,87823.0,87812.0,0.00017083]
[1766893001278,0.02402122,87822.0,87812.0,0.00017083]
[1766893001478,0.02402122,87821.0,87812.0,0.00017083]
[1766893001779,0.02402122,87820.0,87812.0,0.00017083]
[1766893001978,0.02402122,87819.0,87812.0,0.00017083]
[1766893002179,0.02402122,87818.0,87812.0,0.00017083]
[1766893002380,0.0113943,87825.0,87812.0,0.00017083]
[1766893002580,0.02402096,87824.0,87812.0,0.00017083]
[1766893002880,0.02402096,87823.0,87812.0,0.00017083]
[1766893003080,0.02402096,87822.0,87812.0,0.00017083]
[1766893003277,0.02402096,87822.0,87808.0,0.057]
[1766893003278,0.0113954,87816.0,87808.0,0.057]
[1766893003474,0.0113951,87819.0,87808.0,0.057]
[1766893003779,0.02402101,87818.0,87801.0,0.0113972]
[1766893003981,0.0113951,87819.0,87803.0,0.011397]
[1766893004177,0.02402121,87818.0,87803.0,0.011397]
[1766893004377,0.02402121,87817.0,87803.0,0.011397]
[1766893004579,0.02402121,87816.0,87803.0,0.011397]
[1766893004776,0.02402121,87815.0,87803.0,0.011397]
[1766893004975,0.02402121,87814.0,87802.0,0.05717083]
[1766893005173,0.0113953,87817.0,87802.0,0.05717083]
[1766893005374,0.02401018,87816.0,87802.0,0.05717083]
[1766893005573,0.02401018,87815.0,87802.0,0.05717083]
[1766893005881,0.02401018,87814.0,87802.0,0.05717083]
[1766893006082,0.0113953,87817.0,87802.0,0.05717083]
[1766893006283,0.02401021,87816.0,87802.0,0.05717083]
[1766893006479,0.02401021,87815.0,87802.0,0.05717083]
[1766893006681,0.02401021,87814.0,87802.0,0.05717083]
[1766893006979,0.0113953,87817.0,87802.0,0.05717083]
[1766893007283,0.02400706,87816.0,87802.0,0.05717083]
[1766893007483,0.02400706,87815.0,87802.0,0.05717083]
[1766893007679,0.0113953,87817.0,87802.0,0.05717083]
[1766893007879,0.02400464,87816.0,87802.0,0.05717083]
[1766893008078,0.02400464,87815.0,87802.0,0.05717083]
[1766893008281,0.0113953,87817.0,87802.0,0.05717083]
[1766893008481,0.02400268,87816.0,87802.0,0.05717083]
[1766893008681,0.0113953,87817.0,87802.0,0.06856793]
[1766893010378,0.0113949,87820.0,87802.0,0.06856793]
[1766893010582,0.02399954,87819.0,87802.0,0.06856793]
[1766893010782,0.02399954,87818.0,87802.0,0.06856793]
[1766893011081,0.02399954,87817.0,87802.0,0.06856793]
[1766893011282,0.0113949,87820.0,87802.0,0.06856793]
[1766893011483,0.02399836,87819.0,87802.0,0.06856793]
[1766893011679,0.02399836,87818.0,87802.0,0.06856793]
[1766893011888,0.02399836,87817.0,87802.0,0.06856793]
[1766893012085,0.0113949,87820.0,87802.0,0.06856793]
[1766893012286,0.02399836,87819.0,87802.0,0.06856793]
[1766893012488,0.02399836,87818.0,87802.0,0.06856793]
[1766893012785,0.02399836,87817.0,87802.0,0.06856793]
[1766893012986,0.0113949,87820.0,87802.0,0.06856793]
[1766893013182,0.02399739,87819.0,87802.0,0.06856793]
[1766893013378,0.02399739,87818.0,87802.0,0.06856793]
[1766893013578,0.02399739,87817.0,87802.0,0.06856793]
[1766893013779,0.02399739,87816.0,87802.0,0.06856793]
[1766893014085,0.02399739,87815.0,87802.0,0.06856793]
[1766893014286,0.0113949,87820.0,87802.0,0.06856793]
[1766893014483,0.02399603,87819.0,87802.0,0.06856793]
[1766893014682,0.02399603,87818.0,87802.0,0.06856793]
[1766893014884,0.02399603,87817.0,87802.0,0.06856793]
[1766893015086,0.02399603,87816.0,87802.0,0.06856793]
[1766893015284,0.02399603,87815.0,87802.0,0.06856793]
[1766893015483,0.0113949,87820.0,87802.0,0.06856793]
[1766893015787,0.02399564,87819.0,87802.0,0.06856793]
[1766893015988,0.02399564,87818.0,87802.0,0.06856793]
[1766893016188,0.02399564,87817.0,87802.0,0.06856793]
[1766893016489,0.02399564,87816.0,87802.0,0.06856793]
[1766893016681,0.02399564,87815.0,87802.0,0.06856793]
[1766893016982,0.0113949,87820.0,87802.0,0.06856793]
[1766893017175,0.02399538,87819.0,87802.0,0.06856793]
[1766893017381,0.02399538,87818.0,87802.0,0.06856793]
[1766893017687,0.02399538,87817.0,87802.0,0.06856793]
[1766893017987,0.02399538,87816.0,87802.0,0.06856793]
[1766893018189,0.02399538,87815.0,87802.0,0.06856793]
[1766893018387,0.0113952,87818.0,87802.0,0.06856793]
[1766893018589,0.0239831,87817.0,87802.0,0.06856793]
[1766893018789,0.0239831,87816.0,87802.0,0.06856793]
[1766893018990,0.0239831,87815.0,87802.0,0.06856793]
[1766893019190,0.0113952,87818.0,87802.0,0.06856793]
[1766893019491,0.02398324,87817.0,87802.0,0.06856793]
[1766893019692,0.02398324,87816.0,87802.0,0.06856793]
[1766893019892,0.02398324,87815.0,87802.0,0.06856793]
[1766893020093,0.0113952,87818.0,87802.0,0.06856793]
[1766893020292,0.02398324,87817.0,87802.0,0.06856793]
[1766893020492,0.02398324,87816.0,87802.0,0.06856793]
[1766893020693,0.02398324,87815.0,87802.0,0.06856793]
[1766893020895,0.0113952,87818.0,87802.0,0.06856793]
[1766893021098,0.02398352,87817.0,87802.0,0.06856793]
[1766893021398,0.0113952,87818.0,87802.0,0.06856793]
[1766893021399,0.02398352,87816.0,87802.0,0.06856793]
[1766893021590,0.02398352,87815.0,87802.0,0.06856793]
[1766893021789,0.0113952,87818.0,87802.0,0.06856793]
[1766893021995,0.02398398,87817.0,87802.0,0.06856793]
[1766893022196,0.02398398,87816.0,87802.0,0.06856793]
[1766893022493,0.02398398,87815.0,87802.0,0.06856793]
[1766893022694,0.0113952,87818.0,87802.0,0.06856793]
[1766893022897,0.02398462,87817.0,87802.0,0.06856793]
[1766893023096,0.02398462,87816.0,87802.0,0.06856793]
[1766893023295,0.02398462,87815.0,87802.0,0.06856793]
[1766893023596,0.0113952,87818.0,87802.0,0.06856793]
[1766893023796,0.02398547,87817.0,87802.0,0.06856793]
[1766893023990,0.02398547,87816.0,87802.0,0.06856793]
[1766893024191,0.02398547,87815.0,87802.0,0.06856793]
[1766893024495,0.0113952,87818.0,87802.0,0.06856793]
[1766893024695,0.02398651,87817.0,87802.0,0.06856793]
[1766893024891,0.02398651,87816.0,87802.0,0.06856793]
[1766893025092,0.02398651,87815.0,87802.0,0.06856793]
[1766893025291,0.0113952,87818.0,87802.0,0.06856793]
[1766893025493,0.02398731,87817.0,87802.0,0.06856793]
[1766893025693,0.02398731,87816.0,87802.0,0.06856793]
[1766893025893,0.02398731,87815.0,87802.0,0.06856793]
[1766893026095,0.0113952,87818.0,87802.0,0.06856793]
[1766893026295,0.02398731,87817.0,87802.0,0.06856793]
[1766893026495,0.02398731,87816.0,87802.0,0.06856793]
[1766893026696,0.02398731,87815.0,87802.0,0.06856793]
[1766893026897,0.0113952,87818.0,87802.0,0.06856793]
[1766893027096,0.02398832,87817.0,87802.0,0.06856793]
[1766893027397,0.02398832,87816.0,87802.0,0.06856793]
[1766893027587,0.02398832,87815.0,87802.0,0.06856793]
[1766893027785,0.0113952,87818.0,87802.0,0.06856793]
[1766893028000,0.02398954,87817.0,87802.0,0.06856793]
[1766893028198,0.02398954,87816.0,87802.0,0.06856793]
[1766893028399,0.02398954,87815.0,87802.0,0.06856793]
[1766893028698,0.02398954,87814.0,87802.0,0.05717083]
[1766893029000,0.02398954,87813.0,87802.0,0.05717083]
[1766893034900,0.02398954,87813.0,87803.0,0.057]
[1766893038702,0.0113957,87814.0,87803.0,0.057]
[1766893039002,0.02400291,87813.0,87803.0,0.057]
[1766893039195,0.02400291,87812.0,87803.0,0.057]
[1766893039395,0.0113957,87814.0,87803.0,0.057]
[1766893039603,0.02400285,87813.0,87803.0,0.057]
[1766893039802,0.02400285,87812.0,87803.0,0.057]
[1766893040002,0.0113957,87814.0,87803.0,0.057]
[1766893040304,0.02400283,87813.0,87803.0,0.057]
[1766893040501,0.02400283,87812.0,87803.0,0.057]
[1766893040802,0.0113957,87814.0,87803.0,0.057]
[1766893040989,0.02400274,87813.0,87803.0,0.057]
[1766893041189,0.02400274,87812.0,87803.0,0.057]
[1766893041393,0.0113957,87814.0,87803.0,0.057]
[1766893041690,0.02400268,87813.0,87803.0,0.057]
[1766893041896,0.02400268,87812.0,87803.0,0.057]
[1766893042203,0.11430569,87813.0,87803.0,0.057]
[1766893042500,0.02400265,87812.0,87803.0,0.057]
[1766893042699,0.02400265,87811.0,87803.0,0.057]
[1766893042906,0.11430569,87813.0,87803.0,0.057]
[1766893043105,0.02400265,87812.0,87803.0,0.057]
[1766893043300,0.02400265,87811.0,87803.0,0.057]
[1766893043501,0.11430569,87813.0,87803.0,0.057]
[1766893043698,0.02400266,87812.0,87803.0,0.057]
[1766893044004,0.11430569,87813.0,87803.0,0.057]
[1766893044206,0.0240026,87812.0,87803.0,0.057]
[1766893044408,0.11430569,87813.0,87802.0,0.057]
[1766893044607,0.13830829,87812.0,87802.0,0.057]
[1766893044808,0.11430569,87812.0,87802.0,0.057]
[1766893048611,0.02405019,87811.0,87802.0,0.057]
[1766893048801,0.02405019,87810.0,87802.0,0.057]
[1766893049001,0.11430569,87812.0,87802.0,0.057]
[1766893049201,0.02405019,87811.0,87802.0,0.057]
[1766893049494,0.02405019,87810.0,87802.0,0.057]
[1766893049695,0.11430569,87812.0,87802.0,0.057]
[1766893049900,0.02405041,87811.0,87802.0,0.057]
[1766893050100,0.02405041,87810.0,87802.0,0.057]
[1766893050296,0.11430569,87812.0,87802.0,0.057]
[1766893050501,0.02405046,87811.0,87802.0,0.057]
[1766893050798,0.02405046,87810.0,87802.0,0.057]
[1766893051001,0.11430569,87812.0,87802.0,0.057]
[1766893051203,0.02405043,87811.0,87802.0,0.057]
[1766893051412,0.02405043,87810.0,87802.0,0.057]
[1766893051705,0.11430569,87812.0,87802.0,0.057]
[1766893051904,0.02405071,87811.0,87802.0,0.057]
[1766893052103,0.02405071,87810.0,87802.0,0.057]
[1766893052306,0.11430569,87812.0,87802.0,0.057]
[1766893052505,0.0240508,87811.0,87802.0,0.057]
[1766893052712,0.0240508,87810.0,87802.0,0.057]
[1766893052912,0.11430569,87812.0,87802.0,0.057]
[1766893053212,0.02405096,87811.0,87802.0,0.057]
[1766893053410,0.02405096,87810.0,87802.0,0.057]
[1766893053610,0.11430569,87812.0,87802.0,0.057]
[1766893053811,0.02405141,87811.0,87802.0,0.057]
[1766893054108,0.02405141,87810.0,87802.0,0.057]
[1766893054308,0.11430569,87812.0,87802.0,0.057]
[1766893054513,0.02405193,87811.0,87802.0,0.057]
[1766893054708,0.02405193,87810.0,87802.0,0.057]
[1766893054908,0.11430569,87812.0,87802.0,0.057]
[1766893055211,0.02405183,87811.0,87799.0,0.05717083]
[1766893055513,0.011397,87804.0,87793.0,0.00498191]
[1766893055711,0.13835752,87803.0,87789.0,0.057]
[1766893055917,0.11430569,87800.0,87789.0,0.057]
[1766893058616,0.11430569,87800.0,87790.0,0.0113987]
[1766893062315,0.17130569,87810.0,87794.0,0.0113981]
[1766893062516,0.02402213,87809.0,87794.0,0.0113981]
[1766893062704,0.02402213,87808.0,87794.0,0.0113981]
[1766893062909,0.02402213,87807.0,87796.0,0.0113979]
[1766893063209,0.02402213,87806.0,87796.0,0.0113979]
[1766893063519,0.17130569,87810.0,87796.0,0.0113979]
[1766893063717,0.02402087,87809.0,87796.0,0.0113979]
[1766893063918,0.02402087,87808.0,87796.0,0.0113979]
[1766893064114,0.02402087,87807.0,87796.0,0.0113979]
[1766893064316,0.17130569,87810.0,87796.0,0.0113979]
[1766893064616,0.02401983,87809.0,87798.0,0.0113976]
[1766893064815,0.02401983,87808.0,87798.0,0.0113976]
[1766893065019,0.02401983,87807.0,87798.0,0.0113976]
[1766893065214,0.17130569,87810.0,87798.0,0.0113976]
[1766893065520,0.02401893,87809.0,87798.0,0.0113976]
[1766893065820,0.02401893,87808.0,87798.0,0.0113976]
[1766893066021,0.02401893,87807.0,87798.0,0.0113976]
[1766893066221,0.02401893,87806.0,87798.0,0.0113976]
[1766893066409,0.08101893,87805.0,87798.0,0.0113976]
[1766893066612,0.057,87805.0,87798.0,0.0113976]
[1766893071622,0.036,87805.0,87798.0,0.0113976]
[1766893071823,0.057,87808.0,87801.0,0.0113973]
[1766893072526,0.057,87808.0,87798.0,0.0113976]
[1766893076030,0.057,87808.0,87795.0,0.011398]
[1766893078624,0.02419757,87807.0,87792.0,0.0113984]
[1766893078824,0.057,87808.0,87794.0,0.0113982]
[1766893079025,0.02419763,87807.0,87794.0,0.0113982]
[1766893079226,0.057,87808.0,87794.0,0.0113982]
[1766893079532,0.02419934,87807.0,87794.0,0.0113982]
[1766893079732,0.057,87808.0,87794.0,0.0113982]
[1766893079927,0.02419934,87807.0,87794.0,0.0113982]
[1766893080129,0.057,87808.0,87794.0,0.0113982]
[1766893080330,0.02420094,87807.0,87794.0,0.0113982]
[1766893080631,0.057,87808.0,87794.0,0.0113982]
[1766893080831,0.02420094,87807.0,87794.0,0.0113982]
[1766893081029,0.057,87808.0,87794.0,0.0113982]
[1766893081330,0.02420094,87807.0,87794.0,0.0113982]
[1766893081521,0.057,87808.0,87794.0,0.0113982]
[1766893081722,0.02420328,87807.0,87794.0,0.0113982]
[1766893081924,0.02420328,87806.0,87794.0,0.0113982]
[1766893082121,0.02420328,87805.0,87794.0,0.0113982]
[1766893082329,0.057,87808.0,87794.0,0.0113982]
[1766893082534,0.02420608,87807.0,87794.0,0.0113982]
[1766893082733,0.02420608,87806.0,87794.0,0.0113982]
[1766893082924,0.02420608,87805.0,87794.0,0.0113982]
[1766893083124,0.057,87808.0,87794.0,0.0113982]
[1766893083321,0.02420901,87807.0,87794.0,0.0113982]
[1766893083533,0.02420901,87806.0,87794.0,0.0113982]
[1766893083732,0.02420901,87805.0,87794.0,0.0113982]
[1766893083933,0.02420901,87804.0,87794.0,0.0113982]
[1766893084133,0.057,87808.0,87794.0,0.0113982]
[1766893084337,0.02421228,87807.0,87794.0,0.0113982]
[1766893084536,0.02421228,87806.0,87794.0,0.0113982]
[1766893084837,0.02421228,87805.0,87794.0,0.0113982]
[1766893085036,0.02421228,87804.0,87794.0,0.0113982]
[1766893085239,0.02421648,87803.0,87794.0,0.0113982]
[1766893085538,0.057,87808.0,87794.0,0.0113982]
[1766893085738,0.02421648,87807.0,87794.0,0.0113982]
[1766893086040,0.02421648,87806.0,87794.0,0.0113982]
[1766893086234,0.02421648,87805.0,87794.0,0.0113982]
[1766893086434,0.02421648,87804.0,87794.0,0.0113982]
[1766893086635,0.02421648,87803.0,87794.0,0.0113982]
[1766893086935,0.057,87808.0,87794.0,0.0113982]
[1766893087138,0.0242163,87807.0,87794.0,0.0113982]
[1766893087335,0.0242163,87806.0,87794.0,0.0113982]
[1766893087536,0.0242163,87805.0,87794.0,0.0113982]
[1766893087738,0.0242163,87804.0,87794.0,0.0113982]
[1766893087937,0.0242163,87803.0,87794.0,0.0113982]
[1766893088132,0.057,87808.0,87794.0,0.0113982]
[1766893088332,0.02421765,87807.0,87794.0,0.0113982]
[1766893088538,0.02421765,87806.0,87794.0,0.0113982]
[1766893088738,0.02421765,87805.0,87794.0,0.0113982]
[1766893088947,0.02421765,87804.0,87794.0,0.0113982]
[1766893089142,0.02421765,87803.0,87794.0,0.0113982]
[1766893089342,0.02421765,87802.0,87794.0,0.0113982]
[1766893089538,0.02421765,87801.0,87794.0,0.0113982]
[1766893089738,0.057,87808.0,87794.0,0.0113982]
[1766893089937,0.02421911,87807.0,87794.0,0.0113982]
[1766893090138,0.02421911,87806.0,87794.0,0.0113982]
[1766893090341,0.02421911,87805.0,87794.0,0.0113982]
[1766893090539,0.02421911,87804.0,87794.0,0.0113982]
[1766893090737,0.02421911,87803.0,87794.0,0.0113982]
[1766893090937,0.02421911,87802.0,87796.0,0.0113979]
[1766893091241,0.02421911,87801.0,87796.0,0.0113979]
[1766893091442,0.057,87808.0,87796.0,0.0113979]
[1766893091636,0.02421998,87807.0,87796.0,0.0113979]
[1766893091837,0.057,87808.0,87796.0,0.0113979]
[1766893091838,0.02421998,87806.0,87796.0,0.0113979]
[1766893092137,0.02421998,87805.0,87796.0,0.0113979]
[1766893092338,0.02421998,87804.0,87796.0,0.0113979]
[1766893092542,0.02421998,87803.0,87796.0,0.0113979]
[1766893092741,0.02421998,87802.0,87796.0,0.0113979]
[1766893092943,0.02421998,87801.0,87796.0,0.0113979]
[1766893093136,0.057,87808.0,87796.0,0.0113979]
[1766893093333,0.02422076,87807.0,87796.0,0.0113979]
[1766893093537,0.02422076,87806.0,87796.0,0.0113979]
[1766893093746,0.02422076,87805.0,87796.0,0.0113979]
[1766893093946,0.02422076,87804.0,87796.0,0.0113979]
[1766893094139,0.02422076,87803.0,87796.0,0.0113979]
[1766893094339,0.02422076,87802.0,87796.0,0.0113979]
[1766893094540,0.02422076,87801.0,87796.0,0.0113979]
[1766893094741,0.057,87808.0,87796.0,0.0113979]
[1766893094945,0.024221,87807.0,87796.0,0.0113979]
[1766893095143,0.024221,87806.0,87796.0,0.0113979]
[1766893095346,0.024221,87805.0,87796.0,0.0113979]
[1766893095547,0.024221,87804.0,87796.0,0.0113979]
[1766893095846,0.024221,87803.0,87796.0,0.0113979]
[1766893096046,0.024221,87802.0,87796.0,0.0113979]
[1766893096246,0.024221,87801.0,87796.0,0.0113979]
[1766893096453,0.057,87808.0,87796.0,0.0113979]
[1766893096646,0.02422165,87807.0,87796.0,0.0113979]
[1766893096843,0.02422165,87806.0,87796.0,0.0113979]
[1766893097045,0.02422165,87805.0,87796.0,0.0113979]
[1766893097246,0.02422165,87804.0,87796.0,0.0113979]
[1766893097448,0.02422165,87803.0,87796.0,0.0113979]
[1766893097749,0.02422165,87802.0,87796.0,0.0113979]
[1766893097951,0.02422165,87801.0,87796.0,0.0113979]
[1766893098148,0.057,87808.0,87796.0,0.0113979]
[1766893098347,0.02422239,87807.0,87796.0,0.0113979]
[1766893098650,0.02422239,87806.0,87796.0,0.0113979]
[1766893098853,0.02422239,87805.0,87796.0,0.0113979]
[1766893099049,0.02422239,87804.0,87796.0,0.0113979]
[1766893099254,0.02422239,87803.0,87796.0,0.0113979]
[1766893099552,0.057,87808.0,87796.0,0.0113979]
[1766893099753,0.02422286,87807.0,87796.0,0.0113979]
[1766893099945,0.02422286,87806.0,87796.0,0.0113979]
[1766893100145,0.02422286,87805.0,87796.0,0.0113979]
[1766893100350,0.02422286,87804.0,87796.0,0.0113979]
[1766893100550,0.02422286,87803.0,87796.0,0.0113979]
[1766893100754,0.057,87808.0,87796.0,0.0113979]
[1766893100951,0.02422355,87807.0,87796.0,0.0113979]
[1766893101154,0.02422355,87806.0,87796.0,0.0113979]
[1766893101455,0.02422355,87805.0,87796.0,0.0113979]
[1766893101651,0.02422355,87804.0,87796.0,0.0113979]
[1766893101953,0.02422355,87803.0,87796.0,0.0113979]
[1766893102251,0.057,87808.0,87796.0,0.0113979]
[1766893102550,0.02422486,87807.0,87796.0,0.0113979]
[1766893102751,0.02422486,87806.0,87796.0,0.0113979]
[1766893102952,0.02422486,87805.0,87796.0,0.0113979]
[1766893103153,0.02422486,87804.0,87796.0,0.0113979]
[1766893103354,0.02422486,87803.0,87796.0,0.0113979]
[1766893103555,0.057,87808.0,87796.0,0.0113979]
[1766893103753,0.02422488,87807.0,87796.0,0.0113979]
[1766893103963,0.02422488,87806.0,87796.0,0.0113979]
[1766893104154,0.02422488,87805.0,87796.0,0.0113979]
[1766893104453,0.02422488,87804.0,87796.0,0.0113979]
[1766893104655,0.02422488,87803.0,87796.0,0.0113979]
[1766893104953,0.057,87808.0,87796.0,0.0113979]
[1766893105154,0.0242246,87807.0,87796.0,0.0113979]
[1766893105456,0.0242246,87806.0,87796.0,0.0113979]
[1766893105755,0.0242246,87805.0,87796.0,0.0113979]
[1766893106055,0.0242246,87804.0,87796.0,0.0113979]
[1766893106256,0.0242246,87803.0,87796.0,0.0113979]
[1766893106457,0.057,87808.0,87796.0,0.0113979]
[1766893106656,0.02422473,87807.0,87796.0,0.0113979]
[1766893106856,0.02422473,87806.0,87796.0,0.0113979]
[1766893107060,0.02422473,87805.0,87796.0,0.0113979]
[1766893107255,0.02422473,87804.0,87796.0,0.0113979]
[1766893107456,0.02422473,87803.0,87796.0,0.0113979]
[1766893107757,0.057,87808.0,87796.0,0.0113979]
[1766893108057,0.02427702,87807.0,87796.0,0.0113979]
[1766893108259,0.02427702,87806.0,87796.0,0.0113979]
[1766893108459,0.02427702,87805.0,87796.0,0.0113979]
[1766893108655,0.02427702,87804.0,87796.0,0.0113979]
[1766893108854,0.02427702,87803.0,87796.0,0.0113979]
[1766893109058,0.02427702,87802.0,87796.0,0.0113979]
[1766893109356,0.057,87808.0,87796.0,0.0113979]
[1766893109557,0.02427725,87807.0,87796.0,0.0113979]
[1766893109856,0.02427725,87806.0,87796.0,0.0113979]
[1766893110155,0.02427725,87805.0,87796.0,0.0113979]
[1766893110356,0.02427725,87804.0,87796.0,0.0113979]
[1766893110561,0.02427725,87803.0,87796.0,0.0113979]
[1766893110753,0.02427725,87802.0,87796.0,0.0113979]
[1766893110952,0.057,87808.0,87796.0,0.0113979]
[1766893111153,0.02427717,87807.0,87796.0,0.0113979]
[1766893111356,0.02427717,87806.0,87796.0,0.0113979]
[1766893111552,0.02427717,87805.0,87796.0,0.0113979]
[1766893111851,0.02427717,87804.0,87796.0,0.0113979]
[1766893112147,0.02427717,87803.0,87796.0,0.0113979]
[1766893112345,0.02427717,87802.0,87796.0,0.0113979]
[1766893112549,0.057,87808.0,87796.0,0.0113979]
[1766893112745,0.02427718,87807.0,87796.0,0.0113979]
[1766893112957,0.02427718,87806.0,87796.0,0.0113979]
[1766893113159,0.02427718,87805.0,87796.0,0.0113979]
[1766893113358,0.02427718,87804.0,87796.0,0.0113979]
[1766893113564,0.02427718,87803.0,87796.0,0.0113979]
[1766893113753,0.02427718,87802.0,87796.0,0.0113979]
[1766893113954,0.057,87808.0,87796.0,0.0113979]
[1766893114155,0.0242772,87807.0,87796.0,0.0113979]
[1766893114454,0.0242772,87806.0,87796.0,0.0113979]
[1766893114654,0.0242772,87805.0,87796.0,0.0113979]
[1766893114856,0.0242772,87804.0,87796.0,0.0113979]
[1766893115056,0.0242772,87803.0,87796.0,0.0113979]
[1766893115255,0.0242772,87802.0,87796.0,0.0113979]
[1766893115563,0.057,87808.0,87796.0,0.0113979]
[1766893115762,0.02427722,87807.0,87796.0,0.0113979]
[1766893115958,0.02427722,87806.0,87796.0,0.0113979]
[1766893116262,0.02427722,87805.0,87796.0,0.0113979]
[1766893116462,0.02427722,87804.0,87796.0,0.0683979]
[1766893116662,0.02427722,87803.0,87796.0,0.0683979]
[1766893116851,0.02427722,87802.0,87796.0,0.0683979]
[1766893117054,0.057,87812.0,87796.0,0.0683979]
[1766893117254,0.02427723,87811.0,87796.0,0.0683979]
[1766893117457,0.02427723,87810.0,87796.0,0.0683979]
[1766893117659,0.02427723,87809.0,87796.0,0.0683979]
[1766893117861,0.02427723,87808.0,87796.0,0.0683979]
[1766893118063,0.02427723,87807.0,87796.0,0.0683979]
[1766893118264,0.02427723,87806.0,87796.0,0.0683979]
[1766893118465,0.02427723,87805.0,87796.0,0.0683979]
[1766893118656,0.02427723,87804.0,87796.0,0.0683979]
[1766893118852,0.02427723,87803.0,87796.0,0.0683979]
[1766893119059,0.057,87812.0,87796.0,0.0683979]
[1766893119257,0.02427723,87811.0,87796.0,0.0683979]
[1766893119457,0.057,87812.0,87796.0,0.0683979]
[1766893119458,0.02427723,87810.0,87796.0,0.0683979]
[1766893119666,0.02427723,87809.0,87796.0,0.0683979]
[1766893119866,0.02427723,87808.0,87796.0,0.0683979]
[1766893120167,0.02427723,87807.0,87796.0,0.0683979]
[1766893120363,0.02427723,87806.0,87796.0,0.0683979]
[1766893120562,0.02427723,87805.0,87796.0,0.0683979]
[1766893120862,0.02427723,87804.0,87796.0,0.0683979]
[1766893121062,0.02427723,87803.0,87796.0,0.0683979]
[1766893121262,0.0683959,87812.0,87796.0,0.0683979]
[1766893121469,0.02427814,87811.0,87796.0,0.0683979]
[1766893121768,0.02427814,87810.0,87796.0,0.0683979]
[1766893121967,0.02427814,87809.0,87796.0,0.0683979]
[1766893122170,0.02427814,87808.0,87796.0,0.0683979]
[1766893122467,0.02427814,87807.0,87796.0,0.0683979]
[1766893122658,0.02427814,87806.0,87796.0,0.0683979]
[1766893122859,0.02427814,87805.0,87796.0,0.0683979]
[1766893123065,0.02427814,87804.0,87796.0,0.0683979]
[1766893123269,0.02427814,87803.0,87796.0,0.0683979]
[1766893123468,0.0683959,87812.0,87796.0,0.0683979]
[1766893123671,0.02427886,87811.0,87796.0,0.0683979]
[1766893123869,0.02427886,87810.0,87796.0,0.0683979]
[1766893124169,0.02427886,87809.0,87796.0,0.0683979]
[1766893124368,0.02427886,87808.0,87796.0,0.0683979]
[1766893124566,0.02427886,87807.0,87796.0,0.0683979]
[1766893124766,0.02427886,87806.0,87796.0,0.0683979]
[1766893124967,0.02427886,87805.0,87796.0,0.0683979]
[1766893125167,0.02427886,87804.0,87796.0,0.0683979]
[1766893125365,0.02427886,87803.0,87796.0,0.0683979]
[1766893125565,0.0683959,87812.0,87796.0,0.0683979]
[1766893125764,0.02427917,87811.0,87796.0,0.0683979]
[1766893125964,0.02427917,87810.0,87796.0,0.0683979]
[1766893126165,0.02427917,87809.0,87796.0,0.0683979]
[1766893126478,0.02427917,87808.0,87796.0,0.0683979]
[1766893126669,0.02427917,87807.0,87796.0,0.0683979]
[1766893126973,0.02427917,87806.0,87796.0,0.0683979]
[1766893127272,0.02427917,87805.0,87796.0,0.0683979]
[1766893127471,0.02427917,87804.0,87796.0,0.0683979]
[1766893127672,0.02427917,87803.0,87796.0,0.0683979]
[1766893127874,0.0683959,87812.0,87796.0,0.0683979]
[1766893128076,0.02427926,87811.0,87796.0,0.0683979]
[1766893128373,0.02427926,87810.0,87796.0,0.0683979]
[1766893128573,0.02427926,87809.0,87796.0,0.0683979]
[1766893128774,0.02427926,87808.0,87796.0,0.0683979]
[1766893128973,0.02427926,87807.0,87796.0,0.0683979]
[1766893129175,0.02427926,87806.0,87796.0,0.0683979]
[1766893129363,0.02427926,87805.0,87796.0,0.0683979]
[1766893129567,0.02427926,87804.0,87796.0,0.0683979]
[1766893129767,0.02427926,87803.0,87796.0,0.0683979]
[1766893129967,0.0683959,87812.0,87796.0,0.0683979]
[1766893130262,0.02427927,87811.0,87796.0,0.0683979]
[1766893130461,0.02427927,87810.0,87796.0,0.0683979]
[1766893130674,0.02427927,87809.0,87796.0,0.0683979]
[1766893130874,0.02427927,87808.0,87796.0,0.0683979]
[1766893131175,0.02427927,87807.0,87796.0,0.0683979]
[1766893131376,0.02427927,87806.0,87796.0,0.0683979]
[1766893131575,0.02427927,87805.0,87796.0,0.0683979]
[1766893131775,0.02427927,87804.0,87796.0,0.0683979]
[1766893131976,0.02427927,87803.0,87796.0,0.0683979]
[1766893132279,0.057,87812.0,87796.0,0.0683979]
[1766893132476,0.02427926,87811.0,87796.0,0.0683979]
[1766893132677,0.02427926,87810.0,87796.0,0.0683979]
[1766893132873,0.02427926,87809.0,87796.0,0.0683979]
[1766893133073,0.02427926,87808.0,87796.0,0.0683979]
[1766893133374,0.02427926,87807.0,87796.0,0.0683979]